[Event "*** SCC Grand Prix: Titled Tuesday Blitz"]
[Site "Chess.com"]
[Date "2020.09.29"]
[Round "10"]
[White "Unknown_IM"]
[Black "BogdanDeac"]
[Result "0-1"]
[WhiteElo "2347"]
[BlackElo "2864"]
[TimeControl "180+1"]
[EndTime "11:56:07 PDT"]
[Termination "BogdanDeac won by checkmate"]

1. e4 {[%clk 0:03:00.9]} 1... c6 {[%clk 0:02:57.8]} 2. d4 {[%clk 0:03:00.4]}
2... d5 {[%clk 0:02:58.1]} 3. exd5 {[%clk 0:03:00.4]} 3... cxd5 {[%clk
0:02:58.3]} 4. Bd3 {[%clk 0:03:00.4]} 4... Nc6 {[%clk 0:02:58.6]} 5. c3 {[%clk
0:03:00.5]} 5... Qc7 {[%clk 0:02:58.2]} 6. Ne2 {[%clk 0:03:00.2]} 6... Bg4
{[%clk 0:02:58.2]} 7. O-O {[%clk 0:02:59.8]} 7... e6 {[%clk 0:02:56.3]} 8. Qe1
{[%clk 0:02:59.5]} 8... Bxe2 {[%clk 0:02:37.6]} 9. Qxe2 {[%clk 0:02:55.2]} 9...
Bd6 {[%clk 0:02:38.2]} 10. h3 {[%clk 0:02:51.4]} 10... Nge7 {[%clk 0:02:24.2]}
11. Bg5 {[%clk 0:02:30.3]} 11... Ng6 {[%clk 0:02:22.9]} 12. Nd2 {[%clk
0:02:26.5]} 12... Nf4 {[%clk 0:02:14.9]} 13. Bxf4 {[%clk 0:02:18.3]} 13... Bxf4
{[%clk 0:02:15.8]} 14. Nb3 {[%clk 0:02:06]} 14... h5 {[%clk 0:02:13.3]} 15. Nc5
{[%clk 0:01:54.2]} 15... Bd6 {[%clk 0:02:12.3]} 16. Nxe6 {[%clk 0:01:43.3]}
16... fxe6 {[%clk 0:02:11.4]} 17. Qxe6+ {[%clk 0:01:44.2]} 17... Ne7 {[%clk
0:02:11.5]} 18. Bb5+ {[%clk 0:01:39.8]} 18... Kd8 {[%clk 0:02:09.7]} 19. Rfe1
{[%clk 0:01:32.6]} 19... a6 {[%clk 0:02:07.7]} 20. Ba4 {[%clk 0:01:31.3]} 20...
b5 {[%clk 0:02:07.2]} 21. Bb3 {[%clk 0:01:31.4]} 21... Qd7 {[%clk 0:02:06.9]}
22. Bxd5 {[%clk 0:01:30.8]} 22... Qxe6 {[%clk 0:02:05.6]} 23. Rxe6 {[%clk
0:01:26.5]} 23... Kd7 {[%clk 0:02:05.5]} 24. Rxd6+ {[%clk 0:01:10.7]} 24... Kxd6
{[%clk 0:02:04.4]} 25. Bxa8 {[%clk 0:01:11.5]} 25... Rxa8 {[%clk 0:02:04.7]} 26.
Re1 {[%clk 0:01:12.1]} 26... Nd5 {[%clk 0:02:04.4]} 27. Re5 {[%clk 0:01:06.2]}
27... g6 {[%clk 0:02:04.1]} 28. g3 {[%clk 0:01:03.2]} 28... Rc8 {[%clk 0:02:00]}
29. a3 {[%clk 0:00:57.9]} 29... Nb6 {[%clk 0:01:51.8]} 30. Rg5 {[%clk
0:00:56.6]} 30... Rg8 {[%clk 0:01:51.2]} 31. f4 {[%clk 0:00:47.6]} 31... Nc4
{[%clk 0:01:49.2]} 32. f5 {[%clk 0:00:47.9]} 32... Nxb2 {[%clk 0:01:47.7]} 33.
fxg6 {[%clk 0:00:48]} 33... Nc4 {[%clk 0:01:47.8]} 34. g4 {[%clk 0:00:47.9]}
34... h4 {[%clk 0:01:44.7]} 35. g7 {[%clk 0:00:46.3]} 35... Nxa3 {[%clk
0:01:43.8]} 36. Rg6+ {[%clk 0:00:46.8]} 36... Kd5 {[%clk 0:01:42.6]} 37. Rxa6
{[%clk 0:00:46.7]} 37... Nb1 {[%clk 0:01:42.4]} 38. Ra7 {[%clk 0:00:25.1]} 38...
Nxc3 {[%clk 0:01:40.9]} 39. Kf2 {[%clk 0:00:22.3]} 39... Kxd4 {[%clk 0:01:40.2]}
40. Ke1 {[%clk 0:00:20.2]} 40... Nd5 {[%clk 0:01:39]} 41. Rb7 {[%clk 0:00:20.1]}
41... Kc5 {[%clk 0:01:38.1]} 42. Kd2 {[%clk 0:00:20.2]} 42... Nf4 {[%clk
0:01:38.2]} 43. Rf7 {[%clk 0:00:17.9]} 43... Nxh3 {[%clk 0:01:37.8]} 44. Rf5+
{[%clk 0:00:18.4]} 44... Kc4 {[%clk 0:01:36.6]} 45. Rh5 {[%clk 0:00:19.3]} 45...
Rxg7 {[%clk 0:01:35]} 46. Rxh4 {[%clk 0:00:19.9]} 46... Ng5 {[%clk 0:01:35.2]}
47. Rh5 {[%clk 0:00:18.4]} 47... Ne4+ {[%clk 0:01:34.3]} 48. Kc2 {[%clk
0:00:16.6]} 48... Rxg4 {[%clk 0:01:34.1]} 49. Rh8 {[%clk 0:00:17]} 49... Rg2+
{[%clk 0:01:33.8]} 50. Kc1 {[%clk 0:00:17.5]} 50... Nc3 {[%clk 0:01:32.5]} 51.
Rc8+ {[%clk 0:00:16.3]} 51... Kb3 {[%clk 0:01:27.6]} 52. Rc4 {[%clk 0:00:12.9]}
52... Rg1+ {[%clk 0:01:18.3]} 53. Kd2 {[%clk 0:00:12.9]} 53... bxc4 {[%clk
0:01:18.7]} 54. Ke3 {[%clk 0:00:13.4]} 54... Na4 {[%clk 0:01:17.8]} 55. Kd2
{[%clk 0:00:14.1]} 55... c3+ {[%clk 0:01:17.4]} 56. Ke3 {[%clk 0:00:15]} 56...
Rd1 {[%clk 0:01:17.2]} 57. Ke2 {[%clk 0:00:15.2]} 57... c2 {[%clk 0:01:18.1]}
58. Ke3 {[%clk 0:00:15.7]} 58... c1=Q+ {[%clk 0:01:19]} 59. Ke2 {[%clk
0:00:16.5]} 59... Rd4 {[%clk 0:01:16.6]} 60. Kf3 {[%clk 0:00:16.6]} 60... Qc3+
{[%clk 0:01:17.1]} 61. Ke2 {[%clk 0:00:17.5]} 61... Rd2+ {[%clk 0:01:17.9]} 62.
Ke1 {[%clk 0:00:17.7]} 62... Nb2 {[%clk 0:01:18.5]} 63. Kf1 {[%clk 0:00:17.6]}
63... Nc4 {[%clk 0:01:19.4]} 64. Ke1 {[%clk 0:00:18.5]} 64... Kc2 {[%clk
0:01:20.3]} 65. Kf1 {[%clk 0:00:19.1]} 65... Kd3 {[%clk 0:01:21.2]} 66. Kg1
{[%clk 0:00:18]} 66... Ke3 {[%clk 0:01:22.1]} 67. Kh1 {[%clk 0:00:18.3]} 67...
Rf2 {[%clk 0:01:21.9]} 68. Kg1 {[%clk 0:00:19.2]} 68... Ne5 {[%clk 0:01:22.4]}
69. Kh1 {[%clk 0:00:19.4]} 69... Ng6 {[%clk 0:01:23.3]} 70. Kg1 {[%clk
0:00:20.1]} 70... Nh4 {[%clk 0:01:24.2]} 71. Kh1 {[%clk 0:00:20.4]} 71... Nf5
{[%clk 0:01:25.1]} 72. Kg1 {[%clk 0:00:21.3]} 72... Qg7+ {[%clk 0:01:20.2]} 73.
Kh1 {[%clk 0:00:22.2]} 73... Ng3+ {[%clk 0:01:20.3]} 74. Kg1 {[%clk 0:00:22.5]}
74... Ne2+ {[%clk 0:01:19.8]} 75. Kh1 {[%clk 0:00:22.8]} 75... Qg1# {[%clk
0:01:20.4]} 0-1

[Event "*** SCC Grand Prix: Titled Tuesday Blitz"]
[Site "Chess.com"]
[Date "2020.09.29"]
[Round "10"]
[White "Kotofeyca"]
[Black "szefru"]
[Result "1-0"]
[WhiteElo "2347"]
[BlackElo "2166"]
[TimeControl "180+1"]
[EndTime "11:56:09 PDT"]
[Termination "Kotofeyca won by resignation"]

1. d4 {[%clk 0:03:00.9]} 1... Nf6 {[%clk 0:02:50.4]} 2. c4 {[%clk 0:03:00.4]}
2... g6 {[%clk 0:02:50.5]} 3. f3 {[%clk 0:03:00.7]} 3... Bg7 {[%clk 0:02:50.9]}
4. e4 {[%clk 0:03:00.8]} 4... d6 {[%clk 0:02:51.3]} 5. Nc3 {[%clk 0:03:01.7]}
5... O-O {[%clk 0:02:49.4]} 6. Be3 {[%clk 0:03:02.1]} 6... c5 {[%clk 0:02:49.9]}
7. dxc5 {[%clk 0:03:00.8]} 7... dxc5 {[%clk 0:02:50.8]} 8. Qxd8 {[%clk
0:03:01.1]} 8... Rxd8 {[%clk 0:02:50.8]} 9. Bxc5 {[%clk 0:03:02]} 9... Nc6
{[%clk 0:02:50.6]} 10. Nd5 {[%clk 0:03:02.6]} 10... e6 {[%clk 0:02:19.8]} 11.
Ne7+ {[%clk 0:03:01.5]} 11... Nxe7 {[%clk 0:02:17.9]} 12. Bxe7 {[%clk
0:03:02.4]} 12... Re8 {[%clk 0:02:16.3]} 13. Ba3 {[%clk 0:03:02]} 13... b6
{[%clk 0:02:13.3]} 14. O-O-O {[%clk 0:03:01.7]} 14... Ba6 {[%clk 0:02:13.4]} 15.
b3 {[%clk 0:02:54.5]} 15... Rac8 {[%clk 0:02:12.3]} 16. Kb1 {[%clk 0:02:52.2]}
16... Red8 {[%clk 0:02:06.1]} 17. Be2 {[%clk 0:02:49]} 17... Rxd1+ {[%clk
0:02:03.3]} 18. Bxd1 {[%clk 0:02:49.9]} 18... b5 {[%clk 0:02:03.1]} 19. cxb5
{[%clk 0:02:18.4]} 19... Bxb5 {[%clk 0:02:02]} 20. Be2 {[%clk 0:02:18.6]} 20...
Bc6 {[%clk 0:01:51.9]} 21. Ba6 {[%clk 0:02:01]} 21... Rd8 {[%clk 0:01:48.8]} 22.
Ne2 {[%clk 0:02:01.3]} 22... Ne8 {[%clk 0:01:46.2]} 23. Bc1 {[%clk 0:01:28.3]}
23... Nc7 {[%clk 0:01:43.4]} 24. Bc4 {[%clk 0:01:27.2]} 24... Nb5 {[%clk
0:01:34.8]} 25. Kc2 {[%clk 0:01:19.7]} 25... f5 {[%clk 0:01:17.5]} 26. exf5
{[%clk 0:01:14.1]} 26... gxf5 {[%clk 0:01:03.9]} 27. Rd1 {[%clk 0:01:14.2]}
27... Re8 {[%clk 0:00:56.9]} 28. a4 {[%clk 0:01:08.4]} 28... Nc7 {[%clk
0:00:55.4]} 29. Nf4 {[%clk 0:00:44.6]} 29... Kf7 {[%clk 0:00:41.1]} 30. Rd6
{[%clk 0:00:44.3]} 30... Bd5 {[%clk 0:00:40.4]} 31. Rd7+ {[%clk 0:00:36.4]}
31... Re7 {[%clk 0:00:39.6]} 32. Rxe7+ {[%clk 0:00:34.8]} 32... Kxe7 {[%clk
0:00:40.5]} 33. Ba3+ {[%clk 0:00:32.9]} 33... Kd7 {[%clk 0:00:33]} 34. Nxd5
{[%clk 0:00:31.6]} 34... exd5 {[%clk 0:00:32.3]} 35. Bd3 {[%clk 0:00:29.8]}
35... Ke6 {[%clk 0:00:32.5]} 36. Bc5 {[%clk 0:00:28]} 36... Be5 {[%clk
0:00:32.1]} 37. Bxa7 {[%clk 0:00:25.3]} 37... Bxh2 {[%clk 0:00:31.6]} 38. b4
{[%clk 0:00:25.3]} 38... h5 {[%clk 0:00:21.1]} 39. b5 {[%clk 0:00:25.2]} 39...
Ne8 {[%clk 0:00:19.4]} 40. a5 {[%clk 0:00:22]} 40... Bc7 {[%clk 0:00:09]} 41. b6
{[%clk 0:00:20.5]} 41... Bd6 {[%clk 0:00:08.6]} 42. a6 {[%clk 0:00:19]} 42... h4
{[%clk 0:00:07.5]} 43. b7 {[%clk 0:00:17.8]} 1-0

[Event "*** SCC Grand Prix: Titled Tuesday Blitz"]
[Site "Chess.com"]
[Date "2020.09.29"]
[Round "10"]
[White "Rakesh"]
[Black "deribas12345"]
[Result "1/2-1/2"]
[WhiteElo "2455"]
[BlackElo "2631"]
[TimeControl "180+1"]
[EndTime "11:56:11 PDT"]
[Termination "Game drawn by repetition"]

1. e4 {[%clk 0:03:00.9]} 1... c5 {[%clk 0:02:58.6]} 2. c3 {[%clk 0:02:55.3]}
2... e6 {[%clk 0:02:58.5]} 3. d4 {[%clk 0:02:55.3]} 3... d5 {[%clk 0:02:59.4]}
4. exd5 {[%clk 0:02:55.5]} 4... exd5 {[%clk 0:02:59.4]} 5. Nf3 {[%clk
0:02:56.4]} 5... Nc6 {[%clk 0:02:59.8]} 6. Bd3 {[%clk 0:02:56.8]} 6... Bd6
{[%clk 0:02:59.7]} 7. O-O {[%clk 0:02:57.3]} 7... Nge7 {[%clk 0:03:00]} 8. dxc5
{[%clk 0:02:57.5]} 8... Bxc5 {[%clk 0:03:00.9]} 9. Nbd2 {[%clk 0:02:58.3]} 9...
O-O {[%clk 0:03:01]} 10. Nb3 {[%clk 0:02:59.2]} 10... Bb6 {[%clk 0:03:01.5]} 11.
h3 {[%clk 0:03:00.1]} 11... h6 {[%clk 0:03:00]} 12. Bf4 {[%clk 0:03:00.6]} 12...
Re8 {[%clk 0:02:58.4]} 13. Qd2 {[%clk 0:03:00.8]} 13... Bf5 {[%clk 0:02:41]} 14.
Rad1 {[%clk 0:02:59.6]} 14... Qd7 {[%clk 0:02:34.6]} 15. Rfe1 {[%clk 0:02:55.1]}
15... Rad8 {[%clk 0:02:31.9]} 16. Nbd4 {[%clk 0:02:47.4]} 16... Nxd4 {[%clk
0:02:28.9]} 17. Nxd4 {[%clk 0:02:36.3]} 17... Bxd4 {[%clk 0:02:27.7]} 18. cxd4
{[%clk 0:02:37.2]} 18... Bxd3 {[%clk 0:02:27.7]} 19. Qxd3 {[%clk 0:02:37]} 19...
Nc6 {[%clk 0:02:28.2]} 20. a3 {[%clk 0:02:33.9]} 20... Rxe1+ {[%clk 0:02:21.4]}
21. Rxe1 {[%clk 0:02:34.8]} 21... Re8 {[%clk 0:02:22]} 22. Re3 {[%clk
0:02:32.9]} 22... Rxe3 {[%clk 0:02:10.1]} 23. fxe3 {[%clk 0:02:33.8]} 23... Qe6
{[%clk 0:02:04.2]} 24. b4 {[%clk 0:02:33.4]} 24... a6 {[%clk 0:02:03.5]} 25. Bg3
{[%clk 0:02:20.1]} 25... g6 {[%clk 0:01:58]} 26. Bf4 {[%clk 0:02:18.4]} 26... g5
{[%clk 0:01:55.1]} 27. Bg3 {[%clk 0:02:18.6]} 27... f5 {[%clk 0:01:53.9]} 28.
Qc3 {[%clk 0:02:04.6]} 28... Qe4 {[%clk 0:01:49.9]} 29. a4 {[%clk 0:01:38.6]}
29... Qb1+ {[%clk 0:01:47.4]} 30. Be1 {[%clk 0:01:39.1]} 30... f4 {[%clk
0:01:35.5]} 31. exf4 {[%clk 0:01:30.4]} 31... gxf4 {[%clk 0:01:28.5]} 32. Kh2
{[%clk 0:01:26.9]} 32... Qe4 {[%clk 0:01:24.7]} 33. Bf2 {[%clk 0:01:25.9]} 33...
Qe2 {[%clk 0:01:03.6]} 34. Kg1 {[%clk 0:01:07.7]} 34... Kf7 {[%clk 0:01:03]} 35.
Qc5 {[%clk 0:00:54.3]} 35... Qe4 {[%clk 0:00:45]} 36. b5 {[%clk 0:00:49.7]}
36... axb5 {[%clk 0:00:42.9]} 37. axb5 {[%clk 0:00:50.6]} 37... Ne7 {[%clk
0:00:43.1]} 38. Qc7 {[%clk 0:00:40.8]} 38... f3 {[%clk 0:00:43.1]} 39. gxf3
{[%clk 0:00:33.1]} 39... Qb1+ {[%clk 0:00:36.2]} 40. Kh2 {[%clk 0:00:28.5]}
40... Qxb5 {[%clk 0:00:32.8]} 41. Bh4 {[%clk 0:00:20.8]} 41... Qe2+ {[%clk
0:00:31.7]} 42. Kg1 {[%clk 0:00:21.3]} 42... b5 {[%clk 0:00:28.7]} 43. Qb7
{[%clk 0:00:16.9]} 43... Qd1+ {[%clk 0:00:21.5]} 44. Kg2 {[%clk 0:00:16.7]}
44... Qd2+ {[%clk 0:00:19.1]} 45. Kh1 {[%clk 0:00:15.8]} 45... Qd1+ {[%clk
0:00:16.8]} 46. Kg2 {[%clk 0:00:15.9]} 46... Qe2+ {[%clk 0:00:16.8]} 47. Kg1
{[%clk 0:00:16.3]} 47... Qe3+ {[%clk 0:00:13.9]} 48. Kg2 {[%clk 0:00:16.3]}
48... Qe2+ {[%clk 0:00:10]} 49. Kg1 {[%clk 0:00:16.2]} 1/2-1/2

[Event "*** SCC Grand Prix: Titled Tuesday Blitz"]
[Site "Chess.com"]
[Date "2020.09.29"]
[Round "10"]
[White "Nastya_Rakhmangulova"]
[Black "Playgood28"]
[Result "1-0"]
[WhiteElo "2425"]
[BlackElo "2311"]
[TimeControl "180+1"]
[EndTime "11:56:12 PDT"]
[Termination "Nastya_Rakhmangulova won on time"]

1. e4 {[%clk 0:03:00.9]} 1... e5 {[%clk 0:02:59]} 2. Nf3 {[%clk 0:03:00.5]} 2...
d6 {[%clk 0:02:59]} 3. d4 {[%clk 0:03:00]} 3... exd4 {[%clk 0:02:58.8]} 4. Qxd4
{[%clk 0:02:59.5]} 4... a6 {[%clk 0:02:57.1]} 5. Bg5 {[%clk 0:02:58.5]} 5... Nc6
{[%clk 0:02:56.7]} 6. Qc3 {[%clk 0:02:58.6]} 6... Nf6 {[%clk 0:02:55]} 7. Bxf6
{[%clk 0:02:53.3]} 7... Qxf6 {[%clk 0:02:54.6]} 8. Qxf6 {[%clk 0:02:51.8]} 8...
gxf6 {[%clk 0:02:54.3]} 9. Nc3 {[%clk 0:02:48.2]} 9... f5 {[%clk 0:02:53.9]} 10.
Nd5 {[%clk 0:02:29.7]} 10... Kd8 {[%clk 0:02:51.7]} 11. exf5 {[%clk 0:02:03.4]}
11... Bxf5 {[%clk 0:02:49.4]} 12. O-O-O {[%clk 0:02:04]} 12... Bg7 {[%clk
0:02:40.2]} 13. Bd3 {[%clk 0:02:02.9]} 13... Be6 {[%clk 0:02:32]} 14. Be4 {[%clk
0:01:53.9]} 14... Kd7 {[%clk 0:02:16.8]} 15. Nh4 {[%clk 0:01:45.9]} 15... Rae8
{[%clk 0:01:58.2]} 16. Nf5 {[%clk 0:01:35]} 16... Bxf5 {[%clk 0:01:45]} 17.
Bxf5+ {[%clk 0:01:33.5]} 17... Kd8 {[%clk 0:01:45.5]} 18. Rhe1 {[%clk
0:01:16.5]} 18... Nd4 {[%clk 0:01:32]} 19. Bd3 {[%clk 0:01:09.8]} 19... c6
{[%clk 0:01:25.7]} 20. Nc3 {[%clk 0:00:54.6]} 20... h6 {[%clk 0:01:18.3]} 21.
Ne4 {[%clk 0:00:48.6]} 21... Kc7 {[%clk 0:00:57.5]} 22. Ng3 {[%clk 0:00:41.4]}
22... Ne6 {[%clk 0:00:48.7]} 23. Nf5 {[%clk 0:00:40.2]} 23... Bf6 {[%clk
0:00:47.3]} 24. g3 {[%clk 0:00:40.2]} 24... d5 {[%clk 0:00:45.2]} 25. c3 {[%clk
0:00:38.3]} 25... Nc5 {[%clk 0:00:39.3]} 26. Bc2 {[%clk 0:00:38.3]} 26... a5
{[%clk 0:00:38.8]} 27. f3 {[%clk 0:00:37.7]} 27... Kd7 {[%clk 0:00:32.2]} 28.
Kb1 {[%clk 0:00:35]} 28... Rxe1 {[%clk 0:00:30.9]} 29. Rxe1 {[%clk 0:00:34.7]}
29... h5 {[%clk 0:00:27]} 30. h4 {[%clk 0:00:30.9]} 30... Ne6 {[%clk 0:00:22.5]}
31. Kc1 {[%clk 0:00:28.9]} 31... Ng7 {[%clk 0:00:22]} 32. Kd2 {[%clk 0:00:27.2]}
32... Nxf5 {[%clk 0:00:20.2]} 33. Bxf5+ {[%clk 0:00:28.1]} 33... Kd6 {[%clk
0:00:20.1]} 34. Rh1 {[%clk 0:00:24.6]} 34... b6 {[%clk 0:00:16.1]} 35. Ke3
{[%clk 0:00:23.9]} 35... c5 {[%clk 0:00:11.6]} 36. Kf4 {[%clk 0:00:18.3]} 36...
Rg8 {[%clk 0:00:10]} 37. g4 {[%clk 0:00:16.3]} 37... Be5+ {[%clk 0:00:07.5]} 38.
Ke3 {[%clk 0:00:16]} 38... Rh8 {[%clk 0:00:06.4]} 39. gxh5 {[%clk 0:00:15.5]}
39... Rxh5 {[%clk 0:00:05.5]} 40. Bg4 {[%clk 0:00:16.2]} 40... Rh6 {[%clk
0:00:05.7]} 41. h5 {[%clk 0:00:17.1]} 41... Rf6 {[%clk 0:00:04.5]} 42. Kf2
{[%clk 0:00:13.5]} 42... Bf4 {[%clk 0:00:04.1]} 43. Ke2 {[%clk 0:00:12.3]} 43...
Bh6 {[%clk 0:00:02.5]} 44. Kd3 {[%clk 0:00:12.1]} 44... Rf4 {[%clk 0:00:01.8]}
45. Re1 {[%clk 0:00:11.6]} 1-0

[Event "*** SCC Grand Prix: Titled Tuesday Blitz"]
[Site "Chess.com"]
[Date "2020.09.29"]
[Round "10"]
[White "Savagelittlemole"]
[Black "VMikhalevski"]
[Result "0-1"]
[WhiteElo "2624"]
[BlackElo "2725"]
[TimeControl "180+1"]
[EndTime "11:56:14 PDT"]
[Termination "VMikhalevski won by resignation"]

1. e4 {[%clk 0:03:00.9]} 1... e5 {[%clk 0:02:59.3]} 2. Nf3 {[%clk 0:03:01.1]}
2... Nc6 {[%clk 0:02:59.9]} 3. Bb5 {[%clk 0:03:00.5]} 3... a6 {[%clk 0:02:58.9]}
4. Ba4 {[%clk 0:03:00.4]} 4... Nf6 {[%clk 0:02:59.5]} 5. O-O {[%clk 0:02:59.5]}
5... Nxe4 {[%clk 0:03:00.1]} 6. d4 {[%clk 0:02:55.5]} 6... b5 {[%clk 0:03:00.6]}
7. Bb3 {[%clk 0:02:55]} 7... d5 {[%clk 0:03:01.2]} 8. dxe5 {[%clk 0:02:45.5]}
8... Be6 {[%clk 0:03:01.6]} 9. Re1 {[%clk 0:02:37.8]} 9... Be7 {[%clk
0:02:56.5]} 10. c3 {[%clk 0:02:35]} 10... O-O {[%clk 0:02:54.8]} 11. Nbd2 {[%clk
0:02:31.8]} 11... Nc5 {[%clk 0:02:47.5]} 12. Bc2 {[%clk 0:02:29.2]} 12... Bg4
{[%clk 0:02:43.1]} 13. h3 {[%clk 0:02:27.3]} 13... Bh5 {[%clk 0:02:42.2]} 14.
Nb3 {[%clk 0:02:21.4]} 14... Ne6 {[%clk 0:02:37.2]} 15. g4 {[%clk 0:02:02.7]}
15... Bg6 {[%clk 0:02:36]} 16. Be3 {[%clk 0:01:44.7]} 16... Qd7 {[%clk
0:02:20.6]} 17. Rc1 {[%clk 0:01:34.2]} 17... Rad8 {[%clk 0:02:18.4]} 18. Nbd4
{[%clk 0:01:32.9]} 18... Ncxd4 {[%clk 0:02:06.5]} 19. Nxd4 {[%clk 0:01:29.5]}
19... c5 {[%clk 0:02:02.9]} 20. Nxe6 {[%clk 0:01:27.2]} 20... Qxe6 {[%clk
0:01:58.2]} 21. Bxg6 {[%clk 0:01:22.8]} 21... fxg6 {[%clk 0:01:53.9]} 22. Qc2
{[%clk 0:01:08.4]} 22... Rf3 {[%clk 0:01:40.3]} 23. Kg2 {[%clk 0:00:43.3]} 23...
Rdf8 {[%clk 0:01:39.9]} 24. Rcd1 {[%clk 0:00:35.7]} 24... Rxh3 {[%clk
0:01:17.9]} 25. Qe2 {[%clk 0:00:34.2]} 25... Rh4 {[%clk 0:01:06.8]} 26. f3
{[%clk 0:00:34.3]} 26... h5 {[%clk 0:01:06.5]} 27. Rh1 {[%clk 0:00:31.3]} 27...
hxg4 {[%clk 0:01:04.9]} 28. f4 {[%clk 0:00:29.1]} 28... Rh5 {[%clk 0:00:47.1]}
29. Qc2 {[%clk 0:00:19.1]} 29... d4 {[%clk 0:00:44.1]} 30. Rxh5 {[%clk
0:00:13.1]} 30... gxh5 {[%clk 0:00:43.2]} 31. cxd4 {[%clk 0:00:13.4]} 31... Qd5+
{[%clk 0:00:43.3]} 32. Kg1 {[%clk 0:00:06.9]} 32... Qf3 {[%clk 0:00:40.8]} 33.
Bc1 {[%clk 0:00:07.1]} 33... Rd8 {[%clk 0:00:35.3]} 34. Rf1 {[%clk 0:00:07.2]}
34... Qg3+ {[%clk 0:00:33.7]} 35. Qg2 {[%clk 0:00:06]} 35... Qxg2+ {[%clk
0:00:33.1]} 36. Kxg2 {[%clk 0:00:06.1]} 36... Rxd4 {[%clk 0:00:33]} 37. Re1
{[%clk 0:00:02.3]} 37... g6 {[%clk 0:00:31.6]} 38. e6 {[%clk 0:00:02.1]} 38...
c4 {[%clk 0:00:28.6]} 39. Re5 {[%clk 0:00:02.2]} 39... Kf8 {[%clk 0:00:26.7]}
40. Be3 {[%clk 0:00:03.1]} 40... Rd3 {[%clk 0:00:24.9]} 41. f5 {[%clk 0:00:03]}
41... Bf6 {[%clk 0:00:17.4]} 42. Bc5+ {[%clk 0:00:02.2]} 42... Ke8 {[%clk
0:00:16.8]} 43. Re2 {[%clk 0:00:01.9]} 43... gxf5 {[%clk 0:00:16.5]} 44. e7
{[%clk 0:00:02.6]} 44... Rd5 {[%clk 0:00:15.1]} 45. Re6 {[%clk 0:00:03]} 45...
Rxc5 {[%clk 0:00:14.1]} 46. Rxf6 {[%clk 0:00:03.3]} 46... Kxe7 {[%clk
0:00:14.7]} 47. Rh6 {[%clk 0:00:03.8]} 47... f4 {[%clk 0:00:15.2]} 48. Rxh5
{[%clk 0:00:04.3]} 48... Rxh5 {[%clk 0:00:14.5]} 0-1

[Event "*** SCC Grand Prix: Titled Tuesday Blitz"]
[Site "Chess.com"]
[Date "2020.09.29"]
[Round "10"]
[White "Larina_Marija"]
[Black "WiktoriaPOL"]
[Result "1-0"]
[WhiteElo "2178"]
[BlackElo "2054"]
[TimeControl "180+1"]
[EndTime "11:56:15 PDT"]
[Termination "Larina_Marija won on time"]

1. e4 {[%clk 0:02:59.5]} 1... c5 {[%clk 0:02:59.1]} 2. Nc3 {[%clk 0:02:59.1]}
2... a6 {[%clk 0:02:57.3]} 3. g3 {[%clk 0:02:58.7]} 3... Nc6 {[%clk 0:02:56.5]}
4. Bg2 {[%clk 0:02:59]} 4... g6 {[%clk 0:02:55.8]} 5. d3 {[%clk 0:02:51.7]} 5...
Bg7 {[%clk 0:02:55.6]} 6. Be3 {[%clk 0:02:52.2]} 6... d6 {[%clk 0:02:55]} 7. Qd2
{[%clk 0:02:51.8]} 7... e6 {[%clk 0:02:54]} 8. Nd1 {[%clk 0:02:43.9]} 8... Nge7
{[%clk 0:02:52.8]} 9. c3 {[%clk 0:02:43.1]} 9... Qb6 {[%clk 0:02:45.9]} 10. Ne2
{[%clk 0:02:40.2]} 10... O-O {[%clk 0:02:44.9]} 11. Bh6 {[%clk 0:02:37.1]} 11...
d5 {[%clk 0:02:37.8]} 12. Bxg7 {[%clk 0:02:33.9]} 12... Kxg7 {[%clk 0:02:37.4]}
13. exd5 {[%clk 0:02:30.3]} 13... exd5 {[%clk 0:02:37.1]} 14. O-O {[%clk
0:02:22]} 14... d4 {[%clk 0:02:34.9]} 15. cxd4 {[%clk 0:01:53.5]} 15... Nxd4
{[%clk 0:02:33.5]} 16. Nxd4 {[%clk 0:01:53.3]} 16... cxd4 {[%clk 0:02:32.2]} 17.
b3 {[%clk 0:01:50.4]} 17... Be6 {[%clk 0:02:31.2]} 18. Nb2 {[%clk 0:01:49.7]}
18... Bd5 {[%clk 0:02:13.2]} 19. Bh3 {[%clk 0:01:47.2]} 19... Qf6 {[%clk
0:02:03.8]} 20. f4 {[%clk 0:01:41]} 20... b5 {[%clk 0:01:56.4]} 21. Rfe1 {[%clk
0:01:33.5]} 21... Nf5 {[%clk 0:01:53.5]} 22. Bxf5 {[%clk 0:01:24]} 22... Qxf5
{[%clk 0:01:52.2]} 23. Re5 {[%clk 0:01:23.6]} 23... Qd7 {[%clk 0:01:50.5]} 24.
f5 {[%clk 0:01:17.4]} 24... f6 {[%clk 0:01:44.5]} 25. Re2 {[%clk 0:00:51.2]}
25... Qxf5 {[%clk 0:01:43]} 26. Rf2 {[%clk 0:00:51.1]} 26... Qh3 {[%clk
0:01:32.9]} 27. Qf4 {[%clk 0:00:45.4]} 27... Rad8 {[%clk 0:01:19.1]} 28. Qxd4
{[%clk 0:00:38.1]} 28... Bb7 {[%clk 0:00:13.5]} 29. Qa7 {[%clk 0:00:32.3]} 29...
Rd7 {[%clk 0:00:13.5]} 30. Raf1 {[%clk 0:00:28.5]} 30... Rff7 {[%clk 0:00:10.4]}
31. Qe3 {[%clk 0:00:26]} 31... f5 {[%clk 0:00:08.4]} 32. d4 {[%clk 0:00:25]}
32... Rde7 {[%clk 0:00:07.2]} 33. Qd2 {[%clk 0:00:22.6]} 33... Rd7 {[%clk
0:00:05.2]} 34. Nd1 {[%clk 0:00:18.7]} 34... Rf8 {[%clk 0:00:04.8]} 35. Ne3
{[%clk 0:00:17.5]} 35... Rfd8 {[%clk 0:00:03.8]} 36. d5 {[%clk 0:00:15.3]} 36...
Bxd5 {[%clk 0:00:03.3]} 37. Nxd5 {[%clk 0:00:15.3]} 37... Rxd5 {[%clk
0:00:03.3]} 38. Qc3+ {[%clk 0:00:15.5]} 38... Kg8 {[%clk 0:00:02.9]} 39. Re1
{[%clk 0:00:13.6]} 39... Rd4 {[%clk 0:00:02]} 40. b4 {[%clk 0:00:11.6]} 40...
Rd3 {[%clk 0:00:01.9]} 41. Qc7 {[%clk 0:00:10.4]} 41... R8d7 {[%clk 0:00:01.5]}
42. Qc8+ {[%clk 0:00:10.2]} 42... Rd8 {[%clk 0:00:01.3]} 43. Qxa6 {[%clk
0:00:10.3]} 1-0